Workbook

Sheet дожд сточ воды
A1: Наименование сооружения | B1: М2 | C1: Слой осадка за хол период, мм | D1: слой талых вод за 10 дневных часов, мм | E1: Га | F1: WT, М3 | G1: WTсут, М3 | H1: № по ГП | J1: Наименование здания и сооружения | K1: Суточные расходы м3 | L1: № по ГП
B2: =IF(B29="","",B29*C29) -> 50 | C2: 120 | D2: 15 | E2: =IF(B2="","",B2/10000) -> 0.005 | F2: =10*C2*0.5*E2 -> 3 | G2: =10*E2*0.5*0.5*D2 -> 0.1875 | H2: 34
B3: 72 | C3: =IF(B3="","",$C$2) -> 120 | D3: =IF(B3="","",$D$2) -> 15 | E3: =IF(B3="","",B3/10000) -> 0.0072 | F3: =IF(B3="","",10*C3*0.5*E3) -> 4.32 | G3: =IF(B3="","",10*E3*0.5*0.5*D3) -> 0.27 | H3: 11
B4: 97.5 | C4: 120 | D4: 15 | E4: 0.00975 | F4: =IF(B4="","",10*C4*0.5*E4) -> 5.85 | G4: =IF(B4="","",10*E4*0.5*0.5*D4) -> 0.365625 | H4: 34
A28: Наименование сооружения | B28: Ширина | C28: Длина | D28: Коофициент стока | E28: Осадок суточный летом, мм | F28: Площадь | G28: WTсут, М3 | H28: WT3сут, М3 | I28: № по ГП | K28: =SUMPRODUCT(G2:G26*(H2:H26=H2)+(K2:K26*(L2:L26=H2))+(H29:H53*(I29:I53=H2))) -> 
B29: 10 | C29: 5 | D29: 0.95 | E29: 62 | F29: =B29*C29 -> 50 | G29: =F29*0.95*E29/1000*20% -> 0.589 | H29: =G29*3 -> 1.767 | K29: =SUMPRODUCT(G2:G26*(H2:H26=H2)) -> 
B30: 12 | C30: 6 | D30: 0.95 | E30: =IF(B30="","",$E$29) -> 62 | F30: =IF(B30="","",B30*C30) -> 72 | G30: =IF(B30="","",F30*0.95*E30/1000*20%) -> 0.84816 | H30: =IF(B30="","",G30*3) -> 2.54448
B31: 15 | C31: 6.5 | D31: 0.95 | E31: 62 | F31: =IF(B31="","",B31*C31) -> 97.5 | G31: =IF(B31="","",F31*0.95*E31/1000*20%) -> 1.14855 | H31: =IF(B31="","",G31*3) -> 3.44565
D32: 0.95
D33: 0.95
D34: 0.95
D35: 0.95
D36: 0.95
D37: 0.95
D38: 0.95
D39: 0.95
D40: 0.95
D41: 0.95
D42: 0.95
D43: 0.95
D44: 0.95
D45: 0.95
D46: 0.95
D47: 0.95
D48: 0.95
D49: 0.95
D50: 0.95
D51: 0.95
D52: 0.95
D53: 0.95
